bitfinex-derivatives/quotes_ETHF0:USTF0_20241104
["timestamp","ask_amount","ask_price","bid_price","bid_amount"]
[1730681843825,5.83393915,2450.3,2449.5,3.6717]
[1730681843826,0.40833,2449.9,2449.7,0.40834]
[1730681844020,0.40834,2449.8,2449.6,0.40836]
[1730681844226,0.40834,2449.8,2449.6,0.40837]
[1730681844428,0.87333,2449.9,2449.7,0.40834]
[1730681844623,0.465,2449.9,2449.5,0.8855]
[1730681844824,0.87332,2449.9,2449.5,0.8855]
[1730681845020,0.87332,2449.9,2449.7,0.40834]
[1730681846525,0.465,2449.9,2449.8,0.40833]
[1730681846728,0.4482,2450.0,2449.9,0.40832]
[1730681846926,3.05748412,2450.2,2449.6,1.02093]
[1730681847135,3.52177412,2450.3,2450.1,0.40828]
[1730681847628,3.05747412,2450.3,2450.1,0.40828]
[1730681847833,0.40827,2450.2,2450.0,0.40829]
[1730681848229,0.40827,2450.2,2449.8,3.2078]
[1730681848532,0.40827,2450.2,2450.0,0.40829]
[1730681848937,3.05748412,2450.2,2450.0,0.40829]
[1730681849136,0.40827,2450.2,2450.0,0.40829]
[1730681849826,2.64921412,2450.3,2449.8,3.2078]
[1730681850135,0.40829,2450.1,2449.9,0.40831]
[1730681851026,3.18472503,2450.2,2449.5,0.8855]
[1730681851336,6.39252503,2450.2,2449.6,0.55852414]
[1730681851528,0.40832,2449.9,2449.7,0.40834]
[1730681851724,6.39252503,2450.2,2449.5,0.8855]
[1730681851925,0.4656,2450.4,2449.7,3.2078]
[1730681852138,0.40827,2450.3,2450.1,0.40828]
[1730681852439,0.40827,2450.2,2450.1,0.40828]
[1730681852633,0.40827,2450.2,2450.0,0.40829]
[1730681854425,0.4656,2450.4,2450.0,0.40829]
[1730681854625,3.18472503,2450.3,2449.7,3.2078]
[1730681854832,6.39252503,2450.1,2449.5,0.8855]
[1730681855031,0.40837,2449.6,2449.5,0.8855]
[1730681855430,3.18472503,2449.6,2449.0,3.2078]
[1730681855729,0.40844,2449.2,2449.1,0.8689]
[1730681855933,0.40843,2449.3,2449.1,1.27735]
[1730681857534,3.18472503,2449.4,2449.1,0.8689]
[1730681857739,3.18472503,2449.4,2449.2,0.40843]
[1730681857940,0.40843,2449.2,2449.1,0.8689]
[1730681859041,0.40845,2449.1,2449.0,3.2078]
[1730681859536,0.40845,2449.1,2448.9,0.40848]
[1730681859537,0.4085,2448.8,2448.7,1.32891]
[1730681860144,0.40849,2448.9,2448.8,0.40849]
[1730681860636,0.40847,2449.0,2448.9,0.40848]
[1730681860845,0.4085,2448.9,2448.7,1.32891]
[1730681861033,0.4085,2448.9,2448.7,0.9204]
[1730681861233,0.4085,2448.9,2448.8,0.4085]
[1730681861434,0.40848,2449.0,2448.7,0.9204]
[1730681861641,0.4267,2449.1,2448.9,0.40848]
[1730681861944,0.40846,2449.1,2449.0,0.40846]
[1730681862644,0.40846,2449.1,2448.9,0.40848]
[1730681863543,0.40848,2449.0,2448.8,0.4085]
[1730681863843,3.18472503,2448.9,2448.7,0.9204]
[1730681864047,0.4085,2448.8,2448.7,0.9204]
[1730681864646,3.18472503,2448.9,2448.6,0.40853]
[1730681864842,3.18472503,2448.9,2448.7,0.4085]
[1730681865042,3.18472503,2448.9,2448.8,0.4085]
[1730681865244,0.40847,2449.0,2448.9,0.40848]
[1730681865644,0.40846,2449.1,2448.5,4.22917]
[1730681865948,0.40846,2449.1,2448.9,0.40847]
[1730681867958,0.40845,2449.2,2448.6,1.42987]
[1730681868160,3.2078,2449.3,2449.2,0.40843]
[1730681868357,3.61622,2449.3,2449.1,0.40844]
[1730681868948,6.39252503,2449.3,2448.9,0.8802]
[1730681869154,0.40845,2449.1,2448.9,1.28867]
[1730681869354,6.39252503,2449.3,2448.9,0.4449]
[1730681869556,0.40846,2449.1,2448.9,0.85337]
[1730681869761,0.40846,2449.1,2449.0,0.40847]
[1730681870062,0.40845,2449.2,2449.0,0.40847]
[1730681870652,6.80095503,2449.3,2449.1,0.40845]
[1730681870851,3.2078,2449.3,2449.2,0.40843]
[1730681871957,3.2078,2449.3,2448.9,0.4449]
[1730681872158,3.61622,2449.3,2449.1,0.40844]
[1730681873060,3.2078,2449.3,2449.2,0.40843]
[1730681873458,3.18472503,2449.5,2448.9,1.4661]
[1730681873459,3.18472503,2449.5,2449.1,3.2078]
[1730681873663,3.18472503,2449.5,2449.4,0.4084]
[1730681874055,0.4387,2449.7,2449.6,0.40837]
[1730681874264,0.40832,2449.9,2449.5,0.40838]
[1730681874463,0.40832,2449.9,2449.4,3.2078]
[1730681874464,0.40832,2449.9,2449.7,0.40834]
[1730681874763,3.61892503,2450.1,2449.6,0.4557]
[1730681874969,0.40834,2449.8,2449.6,0.4557]
[1730681875569,0.40835,2449.7,2449.6,0.4557]
[1730681875767,3.59305503,2449.8,2449.7,0.40835]
[1730681876063,3.59305503,2449.8,2449.6,0.86406]
[1730681876566,0.40835,2449.7,2449.6,0.86406]
[1730681876762,0.40838,2449.5,2449.4,3.2078]
[1730681876963,3.59310503,2449.5,2449.4,3.2078]
[1730681877269,1.28366,2449.7,2449.5,0.40837]
[1730681877667,0.40837,2449.6,2449.5,0.40837]
[1730681878165,3.18472503,2449.9,2449.4,3.2078]
[1730681878368,0.40834,2449.8,2449.6,0.40836]
[1730681879061,3.59305503,2449.9,2449.7,0.40834]
[1730681879262,3.59305503,2449.9,2449.5,0.4325]
[1730681879263,3.18472503,2449.9,2449.8,0.40833]
[1730681879461,3.59304503,2449.9,2449.8,0.40833]
[1730681879663,0.40834,2449.8,2449.6,0.40837]
[1730681879865,3.18472503,2449.9,2449.6,0.40837]
[1730681880068,0.40834,2449.8,2449.6,0.40837]
[1730681880262,3.18472503,2449.9,2449.6,0.40837]
[1730681880462,0.40835,2449.7,2449.6,0.40837]
[1730681881065,0.40835,2449.8,2449.6,0.40837]
[1730681881276,3.18472503,2449.9,2449.5,0.84087]
[1730681881463,0.40838,2449.5,2449.4,3.2078]
[1730681881659,0.40838,2449.5,2449.3,0.4084]
[1730681881865,3.59310503,2449.6,2449.4,0.4084]
[1730681882059,0.40835,2449.8,2449.2,0.4551]
[1730681882268,0.40835,2449.8,2449.6,0.40836]
[1730681882773,0.40835,2449.8,2449.4,0.4209]
[1730681882976,0.40835,2449.8,2449.6,0.40836]
[1730681883658,0.40836,2449.7,2449.5,0.40837]
[1730681884072,6.39252503,2449.9,2449.4,0.4209]
[1730681884269,6.39252503,2449.9,2449.6,0.40835]
[1730681884270,0.40834,2449.8,2449.6,0.40835]
[1730681884576,0.83171,2450.0,2449.8,0.40833]
[1730681884873,0.40832,2449.9,2449.8,0.40833]
[1730681885476,0.4234,2450.0,2449.4,0.4209]
[1730681885666,0.40832,2449.9,2449.7,0.40834]
[1730681887264,0.4234,2450.0,2449.7,0.40834]
[1730681887465,0.40833,2449.8,2449.7,0.40834]
[1730681887867,0.40833,2449.8,2449.6,0.40836]
[1730681888261,0.40833,2449.9,2449.7,0.40835]
[1730681888468,0.4234,2450.0,2449.4,0.4209]
[1730681888671,0.4234,2450.0,2449.7,0.40835]
[1730681888672,0.40832,2449.9,2449.7,0.40835]
[1730681888872,0.4234,2450.0,2449.8,0.40832]
[1730681889168,0.4234,2450.0,2449.4,0.4209]
[1730681889169,3.2078,2450.1,2449.6,3.2078]
[1730681889471,3.18472503,2450.3,2450.1,0.40828]
[1730681889472,6.25193014,2450.3,2450.1,0.40828]
[1730681889673,3.18472503,2450.3,2449.7,1.91426]
[1730681889978,0.40827,2450.2,2450.0,0.40829]
[1730681890678,3.59298503,2450.3,2450.1,0.40828]
[1730681890967,0.40828,2450.2,2450.0,0.4083]
[1730681891777,3.61608,2450.2,2450.0,0.4083]
[1730681892276,0.40828,2450.1,2449.9,0.40831]
[1730681892770,3.2078,2450.2,2450.1,0.40828]
[1730681892976,3.61607,2450.2,2450.1,0.40828]
[1730681893272,3.61607,2450.2,2449.7,1.91427]
[1730681893273,7.2894,2450.2,2449.7,0.4386]
[1730681893476,0.40832,2449.9,2449.7,0.84694]
[1730681893978,0.40835,2449.7,2449.5,0.40837]
[1730681894175,0.40838,2449.6,2449.4,0.82929]
[1730681894471,0.40838,2449.6,2449.4,0.4209]
[1730681894672,0.8849,2449.8,2449.3,4.04501]
[1730681894673,3.18472503,2449.7,2449.3,4.04501]
[1730681894874,3.18472503,2449.5,2449.0,0.4278]
[1730681895069,3.18472503,2449.2,2448.8,0.4288]
[1730681895265,3.18472503,2449.2,2448.6,0.4278]
[1730681895470,3.18472503,2449.2,2448.7,0.4085]
[1730681895471,0.40849,2448.9,2448.7,0.4085]
[1730681895781,0.4085,2448.9,2448.7,0.40851]
[1730681895970,0.40847,2449.0,2448.6,0.83632]
[1730681896279,0.40851,2448.8,2448.6,0.40852]
[1730681896476,3.18472503,2448.9,2448.7,0.4085]
[1730681896477,3.59322503,2448.9,2448.7,0.4085]
[1730681896778,0.40851,2448.8,2448.6,0.40852]
[1730681897369,3.59322503,2448.9,2448.7,0.40851]
[1730681897667,0.40852,2448.7,2448.6,0.40853]
[1730681898071,0.40852,2448.7,2448.4,0.4288]
[1730681898270,0.40851,2448.8,2448.6,0.40853]
[1730681898672,3.18472503,2448.9,2448.6,0.40853]
[1730681898870,0.40851,2448.8,2448.6,0.40853]
[1730681899069,3.18472503,2448.9,2448.6,0.40853]
[1730681899271,0.40852,2448.7,2448.4,0.4288]
[1730681899476,3.18472503,2448.9,2448.5,0.40854]
[1730681899775,0.40854,2448.6,2448.5,0.40855]
[1730681900078,0.40855,2448.5,2448.4,0.4288]
[1730681900279,0.40855,2448.5,2448.4,0.83737]
[1730681900674,0.40855,2448.5,2448.4,0.4288]
[1730681900876,3.18472503,2448.7,2448.2,3.60329803]
[1730681900877,6.39252503,2448.7,2448.2,3.60329803]
[1730681901072,0.40858,2448.3,2448.2,0.40859]
[1730681901272,0.4086,2448.2,2448.1,0.86411]
[1730681901575,0.4086,2448.2,2448.1,0.86412]
[1730681901882,0.40863,2448.1,2448.0,0.40863]
[1730681902081,0.9025,2448.4,2447.9,0.4464]
[1730681902373,0.9025,2448.4,2448.2,0.4086]
[1730681902374,0.40859,2448.3,2448.2,0.4086]
[1730681903873,0.9025,2448.4,2447.9,0.4464]
[1730681903874,0.4623,2448.4,2448.3,0.40858]
[1730681904483,0.86655,2448.6,2448.4,0.40856]
[1730681904687,0.4548,2448.9,2448.1,3.2078]
[1730681904877,0.4085,2448.8,2448.6,0.40852]
[1730681905785,0.40854,2448.6,2448.4,0.83636]
[1730681905972,3.59328503,2448.5,2448.3,0.40858]
[1730681906378,1.47604,2448.9,2448.5,0.40855]
[1730681906379,3.59325503,2448.7,2448.5,0.40855]
[1730681906582,0.40853,2448.7,2448.6,0.40853]
[1730681906882,0.40853,2448.7,2448.5,0.40854]
[1730681907284,3.63952503,2448.9,2448.5,0.40855]
[1730681907682,0.40853,2448.7,2448.5,0.40855]
[1730681911887,3.63952503,2448.9,2448.2,3.2078]
[1730681911888,0.40851,2448.8,2448.6,0.40852]
[1730681912189,0.40853,2448.7,2448.5,0.40854]
[1730681913495,0.40852,2448.8,2448.2,4.2293]
[1730681913684,0.40852,2448.8,2448.6,0.40852]
[1730681914993,0.40852,2448.7,2448.5,0.40854]
[1730681915383,0.4085,2448.8,2448.6,0.40852]
[1730681915586,0.40848,2449.0,2448.5,3.2078]
[1730681915892,0.40848,2449.0,2448.8,0.40848]
[1730681916089,4.06882503,2449.1,2448.8,0.40848]
[1730681916090,0.40848,2448.9,2448.8,0.40848]
[1730681916479,0.40848,2449.0,2448.6,0.8996]
[1730681916687,0.8841,2449.1,2449.0,0.40847]
[1730681917487,4.47727503,2449.1,2448.9,0.40848]
[1730681917787,0.40847,2449.0,2448.9,0.40848]
[1730681918090,4.06882503,2449.1,2448.6,0.8996]
[1730681918289,4.06882503,2449.1,2448.9,0.40847]
[1730681918290,4.47727503,2449.1,2448.9,0.40847]
[1730681919084,4.06882503,2449.1,2448.7,3.2078]
[1730681919390,4.47728503,2449.1,2448.9,0.40848]
[1730681919588,4.06882503,2449.1,2449.0,0.40847]
[1730681919791,4.47728503,2449.1,2448.9,0.40847]
[1730681920591,0.40847,2449.0,2448.9,0.40847]
[1730681921584,0.40849,2448.9,2448.7,3.61631]
[1730681921792,0.4085,2448.8,2448.7,3.2078]
[1730681922894,3.59321503,2448.9,2448.7,3.2078]
[1730681923087,3.59321503,2448.9,2448.8,0.4085]
[1730681923787,1.29255,2449.1,2449.0,0.40847]
[1730681923992,0.40845,2449.1,2449.0,0.40847]
[1730681924598,0.40845,2449.2,2449.0,0.40847]
[1730681924788,0.4481,2449.3,2449.0,0.40847]
[1730681924987,0.40845,2449.1,2449.0,0.40847]
[1730681925194,0.40845,2449.1,2448.7,3.2078]
[1730681925390,3.18472503,2449.2,2448.9,0.40847]
[1730681925595,0.40847,2449.0,2448.9,0.40848]
[1730681925796,3.18472503,2449.2,2448.9,0.40848]
[1730681926000,0.40846,2449.1,2448.9,0.40847]
[1730681927298,0.40846,2449.1,2448.7,3.2078]
[1730681927600,0.40846,2449.1,2449.0,0.40847]
[1730681927799,3.18472503,2449.2,2449.1,0.40845]
[1730681928291,3.59315503,2449.2,2449.1,0.40845]
[1730681928701,3.18472503,2449.2,2449.1,0.40845]
[1730681928894,7.26162503,2449.4,2449.0,3.2078]
[1730681929096,6.81732503,2449.4,2449.3,0.40842]
[1730681929497,7.22573503,2449.4,2449.2,0.40842]
[1730681929904,7.22573503,2449.4,2449.3,0.40842]
[1730681930097,7.22573503,2449.4,2449.2,0.40842]
[1730681930999,4.01793503,2449.4,2449.2,0.40842]
[1730681931502,3.60952503,2449.4,2449.2,0.40842]
[1730681931705,4.01793503,2449.4,2449.2,0.40842]
[1730681932589,4.01793503,2449.4,2449.0,3.2078]
[1730681932590,0.40845,2449.2,2449.0,3.2078]
[1730681932794,0.40845,2449.2,2449.0,0.40846]
[1730681932795,3.2078,2449.2,2449.0,0.40846]
[1730681932996,0.40846,2449.1,2449.0,0.40846]
[1730681933194,0.40846,2449.1,2448.9,0.40847]
[1730681934002,0.40846,2449.1,2448.8,0.453]
[1730681934210,6.39252503,2449.2,2449.1,0.40845]
[1730681934211,6.80097503,2449.2,2449.1,0.40845]
[1730681934496,3.59317503,2449.2,2449.1,0.40845]
[1730681934698,0.40845,2449.2,2449.1,0.40845]
[1730681935997,0.40846,2449.1,2449.0,0.40846]
[1730681936502,0.40844,2449.2,2449.1,0.40844]
[1730681937309,3.60952503,2449.4,2449.2,0.40843]
[1730681937310,0.40843,2449.3,2449.2,0.40843]
[1730681938098,4.01793503,2449.4,2449.2,0.40843]
[1730681938503,4.01793503,2449.4,2449.0,0.40847]
[1730681938700,4.01793503,2449.4,2449.2,0.40842]
[1730681939101,0.40842,2449.3,2448.8,3.6608]
[1730681939307,3.18472503,2449.1,2448.8,3.2078]
[1730681939498,3.18472503,2449.1,2449.0,0.40847]
[1730681940409,3.59317503,2449.1,2449.0,0.40847]
[1730681940709,0.442,2449.2,2449.1,0.40845]
[1730681940710,0.85044,2449.2,2449.1,0.40845]
[1730681941013,0.40841,2449.4,2449.3,0.40842]
[1730681941304,0.40839,2449.5,2449.2,0.9273]
[1730681941508,0.40838,2449.6,2449.5,0.40838]
[1730681941805,0.4482,2449.7,2449.2,0.9273]
[1730681942115,6.26393056,2450.0,2449.8,0.40833]
[1730681942412,0.40832,2449.9,2449.7,0.40834]
[1730681942706,3.2078,2450.0,2449.4,3.2078]
[1730681942707,3.61611,2450.0,2449.8,0.40833]
[1730681942906,3.2078,2450.0,2449.4,4.2288]
[1730681943104,3.2078,2450.0,2449.9,0.40832]
[1730681944309,3.2078,2450.0,2449.8,0.40832]
[1730681945106,3.2078,2450.0,2449.9,0.40832]
[1730681945321,3.6161,2450.0,2449.8,0.40832]
[1730681945608,0.4083,2450.0,2449.8,0.40832]
[1730681946210,0.4083,2450.0,2449.7,0.4485]
[1730681946513,7.50049373,2450.1,2449.9,0.40831]
[1730681948207,0.40831,2450.0,2449.8,0.84633]
[1730681948398,3.18472503,2449.9,2449.7,0.4485]
[1730681948605,0.40833,2449.8,2449.7,0.4485]
[1730681948803,3.59305503,2449.9,2449.7,0.85685]
[1730681949211,3.18472503,2449.9,2449.7,0.85685]
[1730681949412,0.40833,2449.8,2449.7,0.85685]
[1730681949815,0.40833,2449.8,2449.7,0.4485]
[1730681950007,0.40836,2449.7,2449.5,0.40837]
[1730681950208,0.40835,2449.7,2449.6,0.40836]
[1730681950914,0.40835,2449.7,2449.5,0.40837]
[1730681951314,0.4641,2449.8,2449.5,0.40837]
[1730681951515,0.40837,2449.6,2449.5,0.40837]
[1730681951714,3.18472503,2449.7,2449.2,3.2078]
[1730681952010,0.40842,2449.3,2449.2,3.61622]
[1730681953508,4.07092503,2449.5,2449.2,3.2078]
[1730681954016,0.40842,2449.3,2449.2,3.61623]
[1730681954207,0.40842,2449.3,2449.2,0.40843]
[1730681954608,0.4084,2449.4,2449.3,0.40841]
[1730681955013,0.4084,2449.4,2449.0,0.8566]
[1730681955218,1.29459,2449.5,2449.4,0.4084]
[1730681955510,0.8862,2449.5,2449.4,0.4084]
[1730681955716,0.8862,2449.5,2449.0,0.8566]
[1730681955920,0.8862,2449.5,2449.3,0.40841]
[1730681955921,1.2946,2449.5,2449.3,0.40841]
[1730681957519,1.29459,2449.5,2449.3,0.4084]
[1730681957815,0.40837,2449.6,2449.0,4.0644]
[1730681958021,0.40837,2449.6,2449.4,0.40838]
[1730681958409,0.40839,2449.5,2449.3,0.40841]
[1730681959018,3.18472503,2449.7,2449.1,0.4453]
[1730681959216,0.40837,2449.6,2449.4,0.40839]
[1730681959919,0.40838,2449.5,2449.4,0.40839]
[1730681961017,0.40838,2449.6,2449.1,0.4453]
[1730681961214,3.18472503,2449.7,2449.5,0.40838]
[1730681961215,0.40836,2449.7,2449.5,0.40838]
[1730681962418,0.40837,2449.6,2449.5,0.40838]
[1730681962715,0.8908,2449.8,2449.3,3.2078]
[1730681962912,3.51513056,2450.0,2449.8,0.40833]
[1730681963211,0.86731,2450.0,2449.3,4.22885]
[1730681963418,0.4572,2450.1,2450.0,0.4083]
[1730681964120,0.84917,2450.2,2450.0,0.4083]
[1730681965219,0.40826,2450.3,2450.1,0.40827]
[1730681965412,7.25796503,2450.4,2450.2,0.40826]
[1730681965607,6.84972503,2450.4,2449.7,1.02089]
[1730681965814,0.40826,2450.3,2449.7,1.02089]
[1730681966022,0.40827,2450.2,2450.0,0.40829]
[1730681966216,0.40826,2450.3,2450.1,0.40828]
[1730681966622,0.40827,2450.2,2450.1,0.40828]
[1730681966918,0.40826,2450.3,2450.1,0.40827]
[1730681967614,6.84972503,2450.4,2449.9,1.0208]
[1730681967819,3.665,2450.4,2450.0,0.8899]
[1730681968318,3.2078,2450.4,2450.3,0.40825]
[1730681968619,0.40821,2450.6,2450.4,0.40822]
[1730681968823,0.86979,2450.7,2450.5,0.4082]
[1730681969017,0.4616,2450.7,2450.2,0.40827]
[1730681969217,0.4616,2450.7,2450.6,0.4082]
[1730681969421,0.86979,2450.7,2450.5,0.40821]
[1730681969723,0.4616,2450.7,2450.6,0.4082]
[1730681970116,0.4558,2450.8,2450.7,0.40818]
[1730681970318,2.64782056,2451.1,2450.4,4.22837]
[1730681970319,3.05595056,2451.1,2450.4,4.22837]
[1730681970518,0.40813,2451.1,2450.7,3.2078]
[1730681970817,0.40813,2451.1,2450.8,0.4482]
[1730681971019,0.40813,2451.1,2450.9,0.40815]
[1730681971220,3.18472503,2451.3,2450.9,0.40815]
[1730681971420,0.40811,2451.2,2450.8,0.4482]
[1730681971621,3.59281503,2451.3,2451.0,0.40812]
[1730681972127,0.40811,2451.2,2450.9,0.40814]
[1730681972728,3.18472503,2451.3,2450.8,0.85636]
[1730681973019,0.40814,2451.0,2450.8,0.85636]
[1730681973226,3.18472503,2451.3,2450.8,0.85636]
[1730681973227,0.40813,2451.1,2450.8,0.85636]
[1730681973524,0.40814,2451.0,2450.8,0.4482]
[1730681973717,0.40815,2450.9,2450.8,0.4482]
[1730681973922,0.84825,2450.9,2450.6,3.61599]
[1730681974527,3.62482503,2450.9,2450.6,3.2078]
[1730681974735,0.40818,2450.7,2450.6,3.2078]
[1730681976123,4.48898,2450.7,2450.6,3.2078]
[1730681976425,0.40823,2450.4,2450.3,0.463]
[1730681976926,0.40823,2450.4,2450.2,0.4567]
[1730681977423,9.04034559,2450.7,2450.2,0.4567]
[1730681977726,0.40823,2450.5,2450.2,0.86496]
[1730681979228,9.04034559,2450.7,2450.2,0.4567]
[1730681979416,2.64782056,2450.7,2450.2,0.4567]
[1730681979621,3.6737,2450.8,2450.3,0.40824]
[1730681979622,0.40821,2450.6,2450.3,0.40824]
[1730681979823,0.40823,2450.5,2450.2,0.86496]
[1730681980024,0.40823,2450.5,2450.2,0.4567]
[1730681980224,0.40821,2450.6,2450.3,0.40825]
[1730681980623,5.83254559,2450.7,2450.2,0.4567]
[1730681980930,0.40821,2450.6,2450.3,0.40824]
[1730681981328,2.64782056,2450.7,2450.4,0.40823]
[1730681981528,0.4082,2450.6,2450.4,0.40823]
[1730681981719,0.4082,2450.6,2450.3,0.40824]
[1730681982031,0.4082,2450.6,2450.4,0.40823]
[1730681982718,0.4082,2450.6,2450.2,0.4567]
[1730681982719,0.4082,2450.6,2450.3,0.40824]
[1730681982922,3.2078,2450.8,2450.4,0.4327]
[1730681983122,0.40821,2450.6,2450.4,0.4327]
[1730681983335,3.2078,2450.8,2450.4,0.4327]
[1730681984129,0.40824,2450.4,2450.2,0.4567]
[1730681984431,3.2078,2450.8,2450.2,0.4567]
[1730681984627,0.40822,2450.5,2450.3,0.40825]
[1730681984830,0.40822,2450.5,2450.2,0.86496]
[1730681985429,0.40824,2450.4,2450.2,0.4567]
[1730681985822,3.2078,2450.8,2450.2,0.4567]
[1730681986121,0.40822,2450.5,2450.2,0.86496]
[1730681986722,0.40824,2450.4,2450.2,0.86496]
[1730681987131,0.40823,2450.5,2450.3,0.40825]
[1730681987632,0.40821,2450.6,2450.3,0.40825]
[1730681988130,0.40822,2450.5,2450.3,0.40825]
[1730681990026,3.2078,2450.8,2450.2,0.4567]
[1730681990330,0.40818,2450.7,2450.5,0.40822]
[1730681991336,1.31167,2450.9,2450.4,3.2078]
[1730681991529,1.31167,2450.9,2450.5,0.4082]
[1730681991530,0.40818,2450.8,2450.5,0.4082]
[1730681991827,0.40818,2450.8,2450.6,0.4082]
[1730681992128,1.31166,2450.9,2450.7,0.40818]
[1730681992526,0.9035,2450.9,2450.7,0.40818]
[1730681992725,0.4401,2450.9,2450.8,0.40817]
[1730681993127,0.4401,2450.9,2450.3,4.22842]
[1730681993324,0.4482,2451.2,2450.6,3.2078]
[1730681993529,0.85632,2451.2,2450.9,0.40814]
[1730681993738,0.40812,2451.1,2450.9,0.40814]
[1730681994129,0.4482,2451.2,2450.7,0.8892]
[1730681994328,0.4081,2451.2,2450.9,0.40814]
[1730681994633,0.40812,2451.1,2450.7,0.8892]
[1730681994829,0.8502,2451.3,2450.9,0.40815]
[1730681995039,0.40813,2451.1,2450.9,0.40815]
[1730681995539,0.40813,2451.1,2450.7,0.8892]
[1730681995540,0.40813,2451.0,2450.8,0.40816]
[1730681995729,0.8502,2451.3,2450.7,0.8892]
[1730681996040,0.40813,2451.1,2450.9,0.40815]
[1730681996434,0.40813,2451.1,2450.7,0.8892]
[1730681996636,4.65311503,2451.4,2451.0,0.40813]
[1730681996637,0.40808,2451.4,2451.0,0.40813]
[1730681996838,0.40806,2451.5,2451.2,0.40809]
[1730681998335,4.5821,2451.7,2451.2,0.40809]
[1730681998642,3.2078,2451.4,2450.9,3.61595]
[1730681998842,0.4283,2451.3,2450.9,3.61595]
[1730681999037,0.83681,2451.2,2450.9,3.61595]
[1730681999231,0.83681,2451.2,2451.0,0.40813]
[1730681999539,0.4287,2451.2,2451.1,0.40812]
[1730682000135,0.4287,2451.2,2450.9,3.2078]
[1730682000136,0.4283,2451.3,2451.2,0.4081]
[1730682000331,0.4287,2451.4,2450.9,3.2078]
[1730682000832,0.4287,2451.4,2450.8,3.18472503]
[1730682000833,2.64782056,2451.9,2451.2,3.2078]
[1730682001029,0.40801,2451.8,2451.5,0.40804]
[1730682001231,4.3438,2452.0,2451.7,0.40802]
[1730682001432,4.3438,2452.0,2451.3,0.8709]
[1730682001739,3.2078,2452.0,2451.8,0.40799]
[1730682002339,5.83254559,2452.3,2452.0,0.40797]
[1730682002340,0.40793,2452.3,2452.0,0.40797]
[1730682002535,0.9014,2452.4,2452.3,0.40792]
[1730682002730,0.459,2452.4,2452.3,0.40792]
[1730682002934,3.2078,2452.7,2452.6,0.40787]
[1730682002935,3.6502,2452.7,2452.6,0.40787]
[1730682003235,3.2078,2453.1,2452.4,3.2078]
[1730682003432,0.459,2453.2,2452.5,0.8723]
[1730682003635,0.40784,2452.8,2452.5,1.28018]
[1730682003832,0.40786,2452.7,2452.5,0.8723]
[1730682004142,6.39252503,2452.6,2451.8,3.2078]
[1730682004341,0.40791,2452.4,2452.1,0.40794]
[1730682004545,7.29012503,2452.6,2451.9,0.4237]
[1730682004856,0.40797,2452.0,2451.9,0.4237]
[1730682005043,0.40796,2452.1,2451.9,0.4237]
[1730682005243,0.40797,2452.0,2451.9,0.4237]
[1730682005447,8.30980503,2452.6,2451.9,0.83167]
[1730682005643,8.42612503,2452.6,2451.9,0.4237]
[1730682005851,0.40798,2451.9,2451.8,3.2078]
[1730682006240,0.40798,2452.0,2451.8,3.2078]
[1730682006752,0.40798,2451.9,2451.8,3.2078]
[1730682007255,3.2078,2451.9,2451.5,0.85494]
[1730682007547,0.40803,2451.6,2451.4,0.40806]
[1730682007751,0.40801,2451.8,2451.6,0.40803]
[1730682008143,0.408,2451.9,2451.4,0.40807]
[1730682008339,0.408,2451.9,2451.6,0.40802]
[1730682008849,0.40801,2451.8,2451.5,0.40805]
[1730682009155,0.40799,2451.9,2451.6,0.40803]
[1730682009545,0.40799,2451.9,2451.3,3.6315]
[1730682009739,0.40799,2451.9,2451.4,0.62969032]
[1730682009946,0.4079,2452.5,2452.2,0.40793]
[1730682010248,0.8606,2452.7,2452.1,1.01989]
[1730682010553,0.40787,2452.6,2452.4,0.4079]
[1730682010740,0.4241,2452.7,2452.4,0.4079]
[1730682010947,0.4241,2452.7,2452.2,4.1142]
[1730682011250,0.4241,2452.7,2452.6,0.40787]
[1730682011442,3.62122503,2453.0,2452.2,4.1142]
[1730682011443,0.4365,2453.0,2452.2,4.1142]
[1730682011640,0.40779,2453.1,2452.9,0.40781]
[1730682011850,0.40779,2453.1,2452.6,3.18472503]
[1730682011851,0.40779,2453.1,2452.8,0.40783]
[1730682012046,0.83187,2453.2,2452.9,0.4078]
[1730682012249,0.4241,2453.2,2453.1,0.40779]
[1730682012448,0.40775,2453.4,2453.1,0.40779]
[1730682012651,0.40778,2453.2,2452.9,0.84841]
[1730682012848,0.4078,2453.0,2452.9,0.4406]
[1730682013553,3.2078,2453.3,2452.9,0.4406]
[1730682013757,3.6518,2453.3,2452.6,0.4271]
[1730682013945,3.6518,2453.3,2452.8,0.40783]
[1730682013946,0.4078,2453.1,2452.8,0.40783]
[1730682014454,0.444,2453.3,2452.5,3.2078]
[1730682014654,3.2078,2453.4,2452.5,3.2078]
[1730682014856,3.6518,2453.9,2452.8,3.2078]
[1730682015158,3.2078,2453.5,2453.4,0.40773]
[1730682015352,3.2078,2453.5,2453.2,0.4271]
[1730682015548,3.2078,2453.5,2453.3,0.40774]
[1730682016548,3.2078,2453.5,2453.4,0.40774]
[1730682016750,3.61552,2453.5,2453.3,0.40775]
[1730682016949,3.2078,2453.5,2453.3,0.40775]
[1730682017146,0.40768,2453.8,2453.2,0.4271]
[1730682017454,0.40769,2453.7,2453.5,0.40771]
[1730682017656,3.6518,2453.9,2453.2,0.4271]
[1730682017657,0.40771,2453.6,2453.2,0.4271]
[1730682018152,0.40773,2453.5,2453.3,0.40775]
[1730682018355,3.6518,2453.9,2453.2,0.4271]
[1730682018557,0.40773,2453.5,2453.2,0.83486]
[1730682018761,3.6518,2453.9,2453.2,0.83486]